bitfinex-derivatives/quotes_BTCF0:USTF0_20241203
["timestamp","ask_amount","ask_price","bid_price","bid_amount"]
[1733215653977,0.00609094,95410.0,95409.0,0.08434241]
[1733215654177,0.0052,95411.0,95409.0,0.08434241]
[1733215654478,0.0052,95411.0,95410.0,0.57444]
[1733215654666,1e-08,95411.0,95410.0,0.57444]
[1733215656367,1e-08,95411.0,95410.0,0.57844]
[1733215658676,0.00256001,95417.0,95416.0,0.052389]
[1733215658878,0.00256001,95417.0,95416.0,0.413189]
[1733215659082,0.16020781,95417.0,95416.0,0.413189]
[1733215659969,0.16120781,95417.0,95416.0,0.413189]
[1733215660887,0.16120781,95417.0,95416.0,0.443789]
[1733215663680,0.16120781,95417.0,95416.0,0.575949]
[1733215664983,0.16120781,95417.0,95416.0,0.545349]
[1733215666979,0.16120781,95417.0,95416.0,0.413189]
[1733215667174,0.16120781,95417.0,95416.0,0.545349]
[1733215667784,0.16120781,95417.0,95416.0,0.413189]
[1733215667983,0.16120781,95417.0,95416.0,0.545349]
[1733215669395,0.16120781,95417.0,95416.0,0.413189]
[1733215669596,0.16120781,95417.0,95416.0,0.545349]
[1733215670297,0.16120781,95417.0,95416.0,0.576849]
[1733215670298,0.25769184,95417.0,95416.0,0.576849]
[1733215670497,0.25769184,95417.0,95416.0,0.59781957]
[1733215670904,0.16120781,95417.0,95416.0,0.59781957]
[1733215671088,0.16120781,95417.0,95416.0,0.56631957]
[1733215677795,0.25768798,95417.0,95416.0,0.56631957]
[1733215678607,0.04340617,95417.0,95416.0,0.56631957]
[1733215678799,0.11273555,95435.0,95434.0,0.052379]
[1733215679000,0.11273555,95435.0,95434.0,0.184539]
[1733215679203,0.26919873,95435.0,95434.0,0.184539]
[1733215680107,0.27819873,95435.0,95434.0,0.185539]
[1733215680505,0.28419873,95435.0,95434.0,0.21579697]
[1733215681305,0.28419873,95435.0,95434.0,0.22324697]
[1733215682606,0.33659873,95435.0,95434.0,0.22324697]
[1733215682799,0.28419873,95435.0,95434.0,0.22324697]
[1733215683104,0.28419873,95435.0,95434.0,0.17086797]
[1733215683713,0.38067529,95435.0,95434.0,0.17086797]
[1733215683913,0.26793974,95435.0,95434.0,0.00945]
[1733215684211,0.26793974,95435.0,95416.0,0.42825057]
[1733215684212,0.38067191,95435.0,95419.0,0.13216]
[1733215684509,0.12658646,95430.0,95419.0,0.13216]
[1733215684709,0.20922065,95429.0,95419.0,0.13216]
[1733215684915,0.36653774,95429.0,95425.0,0.052383]
[1733215685113,0.20922065,95428.0,95425.0,0.052383]
[1733215685300,0.3608,95426.0,95423.0,0.052384]
[1733215685613,0.36538716,95425.0,95423.0,0.052384]
[1733215685909,0.09648848,95424.0,95417.0,0.13216]
[1733215686111,0.3608,95418.0,95417.0,0.184548]
[1733215686316,0.45729277,95418.0,95417.0,0.052388]
[1733215686509,0.61362244,95418.0,95417.0,0.052388]
[1733215687403,0.72638384,95418.0,95417.0,0.052388]
[1733215687909,0.72738384,95418.0,95417.0,0.052388]
[1733215688110,0.61462244,95418.0,95417.0,0.052388]
[1733215688310,0.61562244,95418.0,95417.0,0.052388]
[1733215689212,0.72838433,95418.0,95416.0,0.04592]
[1733215689407,0.09650242,95417.0,95416.0,0.04592]
[1733215689807,0.25374372,95417.0,95416.0,0.04592]
[1733215691008,0.25574372,95417.0,95416.0,0.04592]
[1733215691205,0.25674372,95417.0,95416.0,0.0543]
[1733215691713,0.25674372,95417.0,95416.0,0.11538]
[1733215692418,0.25674372,95417.0,95416.0,0.12376]
[1733215692819,0.36950647,95417.0,95416.0,0.12376]
[1733215693410,0.25674372,95417.0,95416.0,0.12376]
[1733215694206,0.25674408,95417.0,95416.0,0.12376]
[1733215695314,0.30913208,95417.0,95416.0,0.12376]
[1733215695820,0.42189485,95417.0,95416.0,0.12376]
[1733215696707,0.30913208,95417.0,95416.0,0.12376]
[1733215696906,0.42189496,95417.0,95416.0,0.12376]
[1733215700021,0.30913208,95417.0,95416.0,0.12376]
[1733215702517,0.42190737,95417.0,95416.0,0.12376]
[1733215703413,0.42191031,95417.0,95416.0,0.12376]
[1733215703825,0.30913208,95417.0,95416.0,0.12376]
[1733215704014,0.4219104,95417.0,95416.0,0.12376]
[1733215707625,0.25674408,95417.0,95416.0,0.12376]
[1733215708729,0.25674733,95417.0,95416.0,0.12376]
[1733215709117,0.25674749,95417.0,95416.0,0.12376]
[1733215710016,0.36952265,95417.0,95416.0,0.12376]
[1733215710342,0.25674749,95417.0,95416.0,0.12376]
[1733215710629,0.36952705,95417.0,95416.0,0.12376]
[1733215711325,0.25674749,95417.0,95416.0,0.12376]
[1733215712621,0.25674749,95417.0,95416.0,0.15656]
[1733215715024,0.36951383,95417.0,95416.0,0.15656]
[1733215716845,0.42190183,95417.0,95416.0,0.12376]
[1733215717629,0.42190183,95417.0,95416.0,0.176149]
[1733215718319,0.36951383,95417.0,95416.0,0.176149]
[1733215720321,0.42190183,95417.0,95416.0,0.176149]
[1733215721335,0.36951383,95417.0,95416.0,0.176149]
[1733215721834,0.36951383,95417.0,95416.0,0.536949]
[1733215722919,0.1602413,95417.0,95416.0,0.536949]
[1733215723931,0.1602413,95417.0,95416.0,0.665229]
[1733215725133,0.1602413,95417.0,95416.0,0.536949]
[1733215726730,0.1103413,95417.0,95416.0,0.536949]
[1733215733435,0.1103413,95417.0,95416.0,0.665229]
[1733215736534,0.1103413,95417.0,95416.0,0.536949]
[1733215738231,0.22309262,95417.0,95416.0,0.536949]
[1733215739441,0.2230935,95417.0,95416.0,0.12376]
[1733215743934,0.31959194,95417.0,95416.0,0.12376]
[1733215745048,0.1103413,95417.0,95416.0,0.12376]
[1733215749742,0.1103413,95417.0,95416.0,0.25288]
[1733215750153,0.1103413,95417.0,95416.0,0.12376]
[1733215750337,0.1103413,95417.0,95416.0,0.25288]
[1733215752047,0.1103413,95417.0,95416.0,0.12376]
[1733215753046,0.22310104,95417.0,95416.0,0.12376]
[1733215755045,0.22310104,95417.0,95412.0,1e-08]
[1733215755347,0.41319,95413.0,95412.0,1e-08]
[1733215755540,0.52594974,95413.0,95412.0,1e-08]
[1733215755744,0.68380148,95413.0,95412.0,1e-08]
[1733215756753,0.57104174,95413.0,95412.0,0.00100001]
[1733215757254,0.57104174,95413.0,95412.0,1e-08]
[1733215757453,0.57104174,95413.0,95412.0,0.00100001]
[1733215757852,0.68381491,95413.0,95412.0,0.00100001]
[1733215758243,0.57104174,95413.0,95412.0,0.00100001]
[1733215764357,0.51865174,95413.0,95412.0,0.00100001]
[1733215765756,0.51865174,95413.0,95412.0,0.06390001]
[1733215768069,0.51865174,95413.0,95412.0,0.09391662]
[1733215768070,0.6314133,95413.0,95412.0,0.09391662]
[1733215769561,0.6314133,95413.0,95412.0,0.10229662]
[1733215770260,0.51865174,95413.0,95412.0,0.10229662]
[1733215770655,0.63141299,95413.0,95412.0,0.10229662]
[1733215771063,0.51865174,95413.0,95412.0,0.10229662]
[1733215771364,0.63141125,95413.0,95412.0,0.10229662]
[1733215771664,0.51865174,95413.0,95412.0,0.10229662]
[1733215772968,0.51865174,95413.0,95412.0,0.59221662]
[1733215772969,0.15785174,95413.0,95412.0,0.59221662]
[1733215773270,0.1569691,95425.0,95412.0,0.59221662]
[1733215773566,0.3608,95431.0,95412.0,0.59221662]
[1733215773567,0.3608,95431.0,95430.0,0.052381]
[1733215773759,0.11274971,95431.0,95430.0,0.181501]
[1733215773960,0.15672476,95431.0,95430.0,0.181501]
[1733215774270,0.15672476,95436.0,95435.0,0.052378]
[1733215774562,0.15672476,95436.0,95430.0,0.12912]
[1733215774563,0.15672476,95431.0,95430.0,0.181501]
[1733215774961,0.11273448,95431.0,95430.0,0.12912]
[1733215775163,0.009,95431.0,95430.0,0.13012]
[1733215775465,0.16533205,95431.0,95430.0,0.13012]
[1733215777067,0.17033205,95431.0,95430.0,0.13112]
[1733215778457,0.17033205,95431.0,95430.0,0.1395]
[1733215778858,0.17033205,95431.0,95430.0,0.01038]
[1733215780864,0.17033205,95431.0,95430.0,0.04288]
[1733215783169,0.28307065,95431.0,95430.0,0.04288]
[1733215784269,0.17033205,95431.0,95430.0,0.04288]
[1733215785366,0.17033205,95431.0,95430.0,0.01038]
[1733215788468,0.2830716,95431.0,95430.0,0.01038]
[1733215790170,0.17033205,95431.0,95430.0,0.01038]
[1733215792272,0.17033205,95431.0,95430.0,0.01876]
[1733215802169,0.17203379,95431.0,95430.0,0.01876]
[1733215803172,0.284782,95431.0,95430.0,0.01876]
[1733215804076,0.17203379,95431.0,95430.0,0.01876]
[1733215804385,0.17203379,95431.0,95430.0,0.04906]
[1733215805175,0.28477542,95431.0,95430.0,0.04906]
[1733215806367,0.28477542,95431.0,95430.0,0.01876]
[1733215808275,0.34607542,95431.0,95430.0,0.01876]
[1733215810583,0.34607542,95431.0,95416.0,0.054988]
[1733215810776,0.3608,95423.0,95416.0,0.052388]
[1733215810977,0.11274163,95422.0,95416.0,0.052388]
[1733215811172,0.00170174,95419.0,95416.0,0.052388]
[1733215811478,0.05239,95413.0,95410.0,0.052392]
[1733215811673,0.3608,95413.0,95410.0,0.052392]
[1733215811881,0.3223958,95412.0,95410.0,0.052392]
[1733215812179,0.11444337,95411.0,95410.0,0.052392]
[1733215812482,0.27197439,95411.0,95410.0,0.065962]
[1733215813278,0.15923276,95411.0,95410.0,0.01357]
[1733215813779,0.22283276,95411.0,95410.0,0.01357]
[1733215814074,0.25313276,95411.0,95410.0,0.01557]
[1733215815082,0.052396,95402.0,95401.0,0.0001101]
[1733215815280,0.54873774,95402.0,95401.0,0.0001101]
[1733215815482,0.70635991,95402.0,95401.0,0.0001101]
[1733215816390,0.70635991,95402.0,95401.0,0.0021101]
[1733215817888,0.70635991,95402.0,95401.0,0.0031101]
[1733215821986,0.57251991,95402.0,95401.0,0.0031101]
[1733215822691,0.57396034,95402.0,95401.0,0.0031101]
[1733215827893,0.52156434,95402.0,95401.0,0.0555071]
[1733215829191,0.52156434,95402.0,95401.0,0.0031101]
[1733215829880,0.63434634,95402.0,95401.0,0.0031101]
[1733215830897,0.52156434,95402.0,95401.0,0.0031101]
[1733215832388,0.052402,95391.0,95381.0,0.062908]
[1733215832694,0.052407,95383.0,95381.0,0.052408]
[1733215832890,0.52395828,95391.0,95379.0,0.02908249]
[1733215833086,0.052404,95388.0,95384.0,0.052406]
[1733215833284,0.0001101,95387.0,95384.0,0.052406]
[1733215833483,0.15781976,95387.0,95384.0,0.052406]
[1733215833689,0.00314217,95386.0,95384.0,0.052406]
[1733215833990,0.15794255,95385.0,95384.0,0.053046]
[1733215834691,0.16108472,95385.0,95384.0,0.058046]
[1733215835086,0.16108472,95385.0,95384.0,0.191926]
[1733215835487,0.16108472,95385.0,95384.0,0.552726]
[1733215836388,0.16208472,95385.0,95384.0,0.552726]
[1733215836589,0.16308472,95385.0,95384.0,0.552726]
[1733215837993,0.16308472,95385.0,95384.0,0.191926]
[1733215838401,0.16308472,95385.0,95384.0,0.552726]
[1733215838698,0.3608,95400.0,95396.0,0.0524]
[1733215838887,0.3608,95400.0,95396.0,0.18928]
[1733215839202,0.15699972,95397.0,95396.0,0.18928]
[1733215839386,0.15699972,95399.0,95396.0,0.18928]
[1733215839697,0.3608,95400.0,95396.0,0.18928]
[1733215839895,0.15699972,95399.0,95396.0,0.19028]
[1733215840089,0.15699972,95399.0,95396.0,0.19228]
[1733215840290,0.15699972,95399.0,95398.0,0.052398]
[1733215840792,0.15799972,95399.0,95398.0,0.052398]
[1733215841797,0.15799972,95399.0,95398.0,0.053398]
[1733215843404,0.2707796,95399.0,95398.0,0.053398]
[1733215843704,0.2707796,95399.0,95398.0,0.056398]
[1733215843705,0.15699972,95399.0,95398.0,0.056398]
[1733215844292,0.26977961,95399.0,95398.0,0.004]
[1733215844509,0.26978045,95399.0,95398.0,0.004]
[1733215844720,0.15699972,95399.0,95398.0,0.004]
[1733215845115,0.26978038,95399.0,95398.0,0.004]
[1733215846221,0.26978038,95399.0,95398.0,0.14084]
[1733215846419,0.26978038,95399.0,95398.0,0.193238]
[1733215847408,0.0026,95406.0,95405.0,0.052395]
[1733215847612,0.3608,95422.0,95410.0,0.052392]
[1733215847613,0.0026,95411.0,95410.0,0.052392]
[1733215847814,0.3608,95422.0,95410.0,0.49764]
[1733215848017,0.15626441,95421.0,95419.0,0.052387]
[1733215848215,0.3608,95422.0,95412.0,0.12670686]
[1733215848420,0.3608,95422.0,95420.0,0.052386]
[1733215848620,0.15626441,95421.0,95420.0,0.052386]
[1733215848820,0.15626441,95421.0,95420.0,0.189226]
[1733215850013,0.15626441,95421.0,95420.0,0.21847489]
[1733215850216,0.15626441,95421.0,95420.0,0.189226]
[1733215850411,0.16326441,95421.0,95420.0,0.189226]
[1733215850625,0.16826441,95421.0,95420.0,0.189226]
[1733215851422,0.16326441,95421.0,95420.0,0.189226]
[1733215851721,0.16626441,95421.0,95420.0,0.189226]
[1733215851928,0.16426441,95421.0,95420.0,0.189226]
[1733215852812,0.16426441,95421.0,95420.0,0.189866]
[1733215856225,0.16426441,95421.0,95420.0,0.053026]
[1733215856427,0.16426441,95421.0,95420.0,0.189866]
[1733215859623,0.16426441,95421.0,95420.0,0.630346]
[1733215862422,0.16426441,95421.0,95420.0,0.13748]
[1733215863423,0.16426441,95421.0,95420.0,0.00064]
[1733215863621,0.16426441,95421.0,95420.0,0.13748]
[1733215864025,0.16426441,95421.0,95420.0,0.00064]
[1733215864227,0.27701472,95421.0,95420.0,0.00064]
[1733215864429,0.16426441,95421.0,95412.0,0.052391]
[1733215864719,0.3608,95417.0,95404.0,0.02879748]
[1733215864930,0.1127547,95416.0,95411.0,0.052391]
[1733215865120,0.27075757,95416.0,95411.0,0.052391]
[1733215865319,0.1127547,95415.0,95411.0,0.052391]
[1733215865524,0.15800287,95416.0,95411.0,0.052391]
[1733215865724,0.15800287,95414.0,95411.0,0.052391]
[1733215866022,0.15800287,95416.0,95411.0,0.052391]
[1733215866330,0.3608,95417.0,95411.0,0.052391]
[1733215866529,0.15758694,95416.0,95411.0,0.052391]
[1733215866725,0.001,95415.0,95411.0,0.052391]
[1733215867133,0.15817211,95414.0,95405.0,0.13684]
[1733215867332,0.15817211,95414.0,95412.0,0.05239]
[1733215867541,0.0319,95413.0,95412.0,0.05239]
[1733215867928,0.18807211,95413.0,95412.0,0.05239]
[1733215869339,0.19107211,95413.0,95412.0,0.05239]
[1733215870141,0.19307211,95413.0,95412.0,0.05239]
[1733215876647,0.16117211,95413.0,95412.0,0.05239]
[1733215878350,0.15917211,95413.0,95412.0,0.05239]
[1733215878538,0.15817211,95413.0,95412.0,0.05239]
[1733215878947,0.15717211,95413.0,95412.0,0.05239]
[1733215879441,0.15817211,95413.0,95412.0,0.05239]
[1733215880633,0.27092638,95413.0,95412.0,0.05239]
[1733215882045,0.26992638,95413.0,95412.0,0.05239]
[1733215882345,0.26992527,95413.0,95412.0,0.05239]
[1733215882544,0.27092527,95413.0,95412.0,0.05239]
[1733215883047,0.15817211,95413.0,95412.0,0.05239]
[1733215883250,0.15817211,95413.0,95412.0,0.18983]
[1733215885950,0.15817211,95413.0,95412.0,0.21080137]
[1733215889153,0.08875111,95413.0,95412.0,0.21080137]
[1733215889347,0.02857949,95413.0,95412.0,0.21080137]
[1733215894344,4.9e-07,95413.0,95412.0,0.21080137]
[1733215896147,0.15728865,95413.0,95412.0,0.07336137]
[1733215896353,0.15728865,95413.0,95412.0,0.05239]
[1733215896650,0.15728865,95413.0,95412.0,0.18983]
[1733215896850,0.27003511,95413.0,95412.0,0.18983]
[1733215897359,0.27003511,95413.0,95412.0,0.05239]
[1733215897658,0.27003511,95413.0,95412.0,0.18791]
[1733215898048,0.27143511,95413.0,95412.0,0.18791]
[1733215898549,0.15868865,95413.0,95412.0,0.18791]
[1733215900550,0.0328,95430.0,95412.0,0.18791]
[1733215900762,0.0329,95436.0,95412.0,0.18791]
[1733215900763,0.0329,95436.0,95435.0,0.052378]
[1733215900960,0.0329,95436.0,95435.0,0.187898]
[1733215901157,0.19013246,95436.0,95435.0,0.187898]
[1733215902051,0.19013246,95436.0,95435.0,0.21704491]
[1733215902452,0.18350594,95436.0,95435.0,0.21704491]
[1733215903253,0.19250594,95436.0,95435.0,0.21704491]
[1733215903665,0.19650594,95436.0,95435.0,0.21704491]
[1733215904456,0.19450594,95436.0,95435.0,0.21704491]
[1733215906360,0.19450594,95436.0,95435.0,0.21700491]
[1733215907767,0.19450594,95436.0,95435.0,0.08152491]
[1733215908061,0.19450594,95436.0,95435.0,0.21700491]
[1733215916064,0.16823246,95436.0,95435.0,0.21700491]
[1733215919863,0.16823246,95436.0,95435.0,0.57780491]
[1733215925377,0.16823246,95436.0,95435.0,0.44232491]
[1733215925571,0.16823246,95436.0,95435.0,0.57780491]
[1733215932372,0.16823246,95436.0,95435.0,0.44232491]
[1733215932576,0.16823246,95436.0,95435.0,0.57688491]
[1733215935186,0.16823246,95436.0,95435.0,0.38994691]
[1733215935475,0.22063246,95436.0,95435.0,0.13456]
[1733215936073,0.22063246,95436.0,95428.0,0.00271022]
[1733215936074,0.58143246,95436.0,95428.0,0.00271022]
[1733215936273,0.0524,95434.0,95425.0,0.00056]
[1733215936475,0.0524,95434.0,95423.0,0.052385]
[1733215936476,0.0332,95433.0,95424.0,0.13456]
[1733215936679,0.24318296,95433.0,95427.0,0.052382]
[1733215936985,0.11272958,95432.0,95424.0,0.13456]
[1733215937285,0.15745516,95431.0,95430.0,0.052381]
[1733215937477,0.15745516,95431.0,95424.0,0.13456]
[1733215937678,0.15745516,95431.0,95429.0,0.052381]
[1733215937980,0.15745516,95431.0,95417.0,0.00733]
[1733215938187,0.15745516,95431.0,95420.0,0.08303511]
[1733215938387,0.15745516,95431.0,95429.0,0.052381]
[1733215939584,0.16045516,95431.0,95429.0,0.052381]
[1733215939779,0.16445516,95431.0,95429.0,0.052381]
[1733215940573,0.033,95430.0,95429.0,0.052381]
[1733215940976,0.19094445,95430.0,95429.0,0.052381]
[1733215941688,0.19094445,95430.0,95418.0,0.13456]
[1733215941885,0.052383,95426.0,95424.0,0.052384]
[1733215942277,0.15626022,95425.0,95424.0,0.052384]
[1733215942581,0.15626022,95425.0,95417.0,0.03755898]
[1733215942582,0.052385,95423.0,95421.0,0.052386]
[1733215942993,0.15662554,95422.0,95421.0,0.052386]
[1733215943587,0.002,95425.0,95423.0,0.052384]
[1733215943890,0.15706941,95424.0,95423.0,0.052384]
[1733215944193,0.15706941,95425.0,95423.0,0.052384]
[1733215944689,0.052383,95426.0,95423.0,0.052384]
[1733215944886,0.3608,95428.0,95423.0,0.052384]
[1733215944887,0.15753229,95425.0,95423.0,0.052384]
[1733215945087,0.20991629,95425.0,95423.0,0.052384]
[1733215945287,0.052384,95425.0,95423.0,0.052384]
[1733215945494,0.15699398,95424.0,95423.0,0.052384]
[1733215946592,0.15999398,95424.0,95423.0,0.052384]
[1733215946892,0.16399398,95424.0,95423.0,0.052384]
[1733215962009,0.16399398,95424.0,95423.0,0.192744]
[1733215963018,0.16399398,95424.0,95417.0,0.03963]
[1733215963219,0.16399398,95424.0,95417.0,0.0323]
[1733215963421,0.052387,95419.0,95417.0,0.0323]
[1733215963919,0.15718805,95418.0,95417.0,0.0323]
[1733215964121,0.51798805,95418.0,95417.0,0.0323]
[1733215964423,0.3608,95418.0,95417.0,0.0323]
[1733215964818,0.51855618,95418.0,95417.0,0.0323]
[1733215965424,0.51855618,95418.0,95417.0,0.084688]
[1733215966031,0.51955618,95418.0,95417.0,0.084688]
[1733215966515,0.52055618,95418.0,95417.0,0.084688]
[1733215967325,0.15975618,95418.0,95417.0,0.084688]
[1733215969420,0.15975618,95418.0,95417.0,0.0323]
[1733215969922,0.15975618,95418.0,95417.0,0.084688]
[1733215973628,0.36899722,95418.0,95417.0,0.445488]
[1733215974025,0.31909722,95418.0,95417.0,0.445488]
[1733215974331,0.20634704,95418.0,95417.0,0.445488]
[1733215975032,0.20477704,95418.0,95417.0,0.445488]
[1733215975417,0.05828618,95418.0,95417.0,0.445488]
[1733215975623,0.00828618,95418.0,95417.0,0.445488]
[1733215975825,0.00671618,95418.0,95417.0,0.445488]
[1733215976627,0.00514618,95418.0,95417.0,0.445488]
[1733215977329,0.00357618,95418.0,95417.0,0.445488]
[1733215978127,0.00200618,95418.0,95417.0,0.445488]
[1733215979132,0.00043618,95418.0,95417.0,0.445488]
[1733215979334,0.1576552,95418.0,95417.0,0.445488]
[1733215980034,0.1560852,95418.0,95417.0,0.445488]
[1733215980931,0.1545152,95418.0,95417.0,0.445488]
[1733215981731,0.1537452,95418.0,95417.0,0.445488]
[1733215983337,0.0026,95429.0,95428.0,0.052382]
[1733215983538,0.0026,95439.0,95430.0,0.052381]
[1733215983933,0.15823407,95431.0,95430.0,0.052381]
[1733215985327,0.15823407,95431.0,95430.0,0.08153955]
[1733215985529,0.16223407,95431.0,95430.0,0.08153955]
[1733215986242,0.16923407,95431.0,95430.0,0.08153955]
[1733215988836,0.16923407,95431.0,95430.0,0.21957955]
[1733215989438,0.16923407,95431.0,95430.0,0.16719855]
[1733215992436,0.16923407,95431.0,95430.0,0.02915855]
[1733215992642,0.16923407,95431.0,95430.0,0.13804]
[1733215992839,0.16923407,95431.0,95429.0,0.052381]
[1733215992840,0.53003407,95431.0,95428.0,0.00056]
[1733215993045,0.53003407,95431.0,95424.0,0.13804]
[1733215993336,0.052383,95427.0,95424.0,0.13804]
[1733215993541,0.0014,95426.0,95424.0,0.13804]
[1733215993736,0.0014,95426.0,95417.0,0.39085679]
[1733215993737,0.15903166,95426.0,95417.0,0.39085679]
[1733215993941,0.09648671,95425.0,95418.0,0.13804]
[1733215994138,0.15903166,95426.0,95418.0,0.13804]
[1733215994337,0.15763166,95424.0,95418.0,0.13804]
[1733215994538,0.0014,95421.0,95418.0,0.13804]
[1733215994740,0.09648626,95420.0,95418.0,0.13804]
[1733215995039,0.09648626,95419.0,95418.0,0.13804]
[1733215995550,0.25420605,95419.0,95418.0,0.13804]
[1733215995948,0.25420605,95419.0,95418.0,0.190427]
[1733215996147,0.15771979,95419.0,95418.0,0.190427]
[1733215996551,0.15771979,95419.0,95418.0,0.221627]
[1733215996953,0.25420077,95419.0,95418.0,0.221627]
[1733215997245,0.25520077,95419.0,95418.0,0.221627]
[1733215997452,0.15871979,95419.0,95418.0,0.221627]
[1733215997640,0.15971979,95419.0,95418.0,0.221627]
[1733216001654,0.16111979,95419.0,95418.0,0.221627]
[1733216006147,0.16111979,95419.0,95418.0,0.052387]
[1733216006352,0.16111979,95419.0,95418.0,0.187947]
[1733216008760,0.16251979,95419.0,95418.0,0.187947]
[1733216009554,0.25900511,95419.0,95418.0,0.187947]
[1733216010355,0.16251979,95419.0,95418.0,0.187947]
[1733216011455,0.25900573,95419.0,95418.0,0.187947]
[1733216014862,0.57097735,95419.0,95418.0,0.187947]
[1733216015069,0.16251979,95419.0,95418.0,0.187947]
[1733216015768,0.16391979,95419.0,95418.0,0.187947]
[1733216022764,0.16531979,95419.0,95418.0,0.187947]
[1733216023163,0.37454764,95419.0,95418.0,0.187947]
[1733216023370,0.37454764,95419.0,95418.0,0.219147]
[1733216023865,0.6055479,95419.0,95418.0,0.219147]
[1733216024257,0.71829034,95419.0,95418.0,0.219147]
[1733216024559,0.2618052,95419.0,95418.0,0.219147]
[1733216026061,0.26179781,95419.0,95418.0,0.219147]
[1733216028265,0.34697898,95419.0,95418.0,0.219147]
[1733216029368,0.34837898,95419.0,95418.0,0.219147]
[1733216030276,0.16671979,95419.0,95418.0,0.219147]
[1733216035670,0.16671979,95419.0,95418.0,0.187947]
[1733216036171,0.16671979,95419.0,95418.0,0.185667]
[1733216036172,0.16811979,95419.0,95418.0,0.185667]
[1733216036877,0.25595269,95419.0,95418.0,0.185667]
[1733216038171,0.35572766,95419.0,95418.0,0.185667]
[1733216040977,0.63263872,95419.0,95418.0,0.185667]
[1733216041273,0.69947036,95419.0,95418.0,0.185667]
[1733216041575,0.82024659,95419.0,95418.0,0.185667]
[1733216043286,0.47650389,95419.0,95418.0,0.185667]
[1733216043467,0.5116212,95419.0,95418.0,0.185667]
[1733216043666,0.16811979,95419.0,95418.0,0.185667]
[1733216043869,0.47650389,95419.0,95418.0,0.185667]
[1733216044478,0.7202655,95419.0,95418.0,0.185667]
[1733216044679,0.82004047,95419.0,95418.0,0.185667]
[1733216045179,0.59948927,95419.0,95418.0,0.185667]
[1733216045482,0.25793209,95419.0,95418.0,0.185667]
[1733216046884,0.25933209,95419.0,95418.0,0.185667]
[1733216049790,0.2591498,95419.0,95418.0,0.185667]
[1733216049969,0.2902498,95419.0,95418.0,0.185667]
[1733216050272,0.20061979,95419.0,95418.0,0.185667]
[1733216050470,0.16951979,95419.0,95418.0,0.185667]
[1733216052372,0.0132,95419.0,95418.0,0.185667]
[1733216052877,0.0132,95419.0,95418.0,0.218467]
[1733216053078,0.24982625,95429.0,95418.0,0.218467]
[1733216053277,0.24982625,95429.0,95428.0,0.413182]
[1733216053478,0.09329045,95429.0,95428.0,0.546462]
[1733216053780,0.25187936,95429.0,95428.0,0.546462]
[1733216053972,0.15858891,95429.0,95428.0,0.546462]
[1733216054285,0.15958891,95429.0,95428.0,0.546462]
[1733216055580,0.16458891,95429.0,95428.0,0.57540192]
[1733216056078,0.16558891,95429.0,95428.0,0.57540192]
[1733216056677,0.16458891,95429.0,95428.0,0.57540192]
[1733216056983,0.16758891,95429.0,95428.0,0.57540192]
[1733216059984,0.16031759,95429.0,95428.0,0.57540192]
[1733216060289,0.48716132,95429.0,95428.0,0.57540192]
[1733216060484,0.8306979,95429.0,95428.0,0.57540192]
[1733216061074,0.7044072,95429.0,95428.0,0.57540192]
[1733216061379,0.36087062,95429.0,95428.0,0.57540192]
[1733216062287,0.25409056,95429.0,95428.0,0.57540192]
[1733216063176,0.36151389,95429.0,95428.0,0.57540192]
[1733216063985,0.31025203,95433.0,95428.0,0.52301992]
[1733216064183,0.0026,95435.0,95434.0,0.052379]
[1733216064384,0.0026,95441.0,95434.0,0.44036]
[1733216064579,0.12052311,95448.0,95447.0,0.052372]
[1733216064580,0.0026,95448.0,95447.0,0.052372]
[1733216064780,0.0026,95448.0,95447.0,0.183532]
[1733216064781,0.15815679,95448.0,95447.0,0.183532]
[1733216064982,0.12052186,95448.0,95447.0,0.183532]
[1733216065178,0.12052186,95448.0,95447.0,0.13116]
[1733216065375,0.15815679,95448.0,95447.0,0.183531]
[1733216065575,0.27867865,95448.0,95447.0,0.183531]
[1733216065874,0.12192186,95448.0,95447.0,0.183531]
[1733216066079,0.1579254,95448.0,95447.0,0.183531]
[1733216066287,0.1669254,95448.0,95447.0,0.184531]
[1733216066476,0.28744726,95448.0,95447.0,0.21394403]
[1733216068082,0.29644726,95448.0,95447.0,0.21494403]
[1733216068281,0.1759254,95448.0,95447.0,0.21494403]
[1733216068482,0.1649254,95448.0,95447.0,0.21394403]
[1733216068684,0.1739254,95448.0,95447.0,0.21494403]
[1733216072183,0.26248951,95448.0,95447.0,0.21494403]
[1733216072795,0.1739254,95448.0,95447.0,0.21494403]
[1733216073187,0.26257609,95448.0,95447.0,0.21494403]
[1733216073387,0.1739254,95448.0,95447.0,0.21494403]
[1733216074688,0.1649254,95448.0,95447.0,0.21394403]
[1733216074890,0.1659254,95448.0,95447.0,0.21394403]
[1733216075085,0.1599254,95448.0,95447.0,0.21294403]
[1733216077014,0.34945292,95448.0,95447.0,0.21294403]
[1733216079092,0.63005273,95448.0,95447.0,0.21294403]
[1733216079688,0.34945292,95448.0,95447.0,0.21294403]
[1733216080483,0.63005273,95448.0,95447.0,0.21294403]
[1733216080685,0.08689029,95448.0,95447.0,0.21294403]
[1733216080983,0.05238,95453.0,95452.0,0.052369]
[1733216081185,0.31185116,95456.0,95455.0,0.052367]
[1733216081586,0.15720936,95464.0,95462.0,0.052363]
[1733216081789,0.0313,95465.0,95464.0,0.052362]
[1733216081987,0.0313,95465.0,95464.0,0.192042]
[1733216082292,0.24099513,95465.0,95464.0,0.192042]
[1733216082490,0.3574209,95465.0,95464.0,0.192042]
[1733216082990,0.3050409,95465.0,95464.0,0.192042]
[1733216083193,0.18861513,95465.0,95464.0,0.192042]
[1733216083385,0.19761513,95465.0,95464.0,0.193042]
[1733216084098,0.20261513,95465.0,95464.0,0.193042]
[1733216085084,0.17131513,95465.0,95464.0,0.193042]
[1733216085788,0.16655797,95465.0,95464.0,0.193042]
[1733216086188,0.16655797,95465.0,95464.0,0.22261362]
[1733216086798,0.15755797,95465.0,95464.0,0.22161362]
[1733216087194,0.16055797,95465.0,95464.0,0.22161362]
[1733216087798,0.15755797,95465.0,95464.0,0.22161362]
[1733216087993,0.16055797,95465.0,95464.0,0.22161362]
[1733216090293,0.25698742,95465.0,95464.0,0.22161362]
[1733216090697,0.47213807,95465.0,95464.0,0.22161362]
[1733216090899,0.56856752,95465.0,95464.0,0.22161362]
[1733216091497,0.36966448,95465.0,95464.0,0.22161362]